Workbook

Sheet Рабочий лист ТКП
L1: Курс $ | N1: 33
A2: Спецификация
F3: Входная цена | L3: Цена заказчика
A4: Артикул | B4: Производитель | C4: Поставщик | D4: Наименование | E4: Кол-во | F4: Цена | G4: Сумма | H4: Поставка | I4: Цена в рублях | J4: Сумма в рублях | L4: Накрутка | M4: Цена за единицу | N4: Цена накруткой
A5: 24 | B5: 50 | C5: 1 | D5: sdfgsdf | E5: 1 | F5: 543 | G5: =F5*E5 -> 543 | H5: под заказ | I5: =F5*N$1 -> 17919 | J5: =G5*N$1 -> 17919 | L5: 0.15 | M5: =(F5*L$5+F5)*N$1 -> 20606.85 | N5: =J5*L$5+J5 -> 20606.85
A6: 35 | B6: 60 | C6: 1 | D6: sdfgsdsdf | E6: 9 | F6: 117 | G6: =F6*E6 -> 1053 | H6: Есть в Мск | I6: 3861 | J6: 34749 | M6: 4440.15 | N6: =J6*L$5+J6 -> 39961.35
A7: 46 | B7: 70 | C7: 1 | D7: cvbncvb | E7: 3 | F7: 615 | G7: 1845 | H7: Есть в Мск | I7: 20295 | J7: 60885 | M7: 23339.25 | N7: 70017.75
A8: 57 | B8: 80 | C8: 1 | D8: ljalfddfd | E8: 5 | F8: 375 | G8: 1875 | H8: Есть в Мск | I8: 12375 | J8: 61875 | M8: 14231.25 | N8: 71156.25
A9: 68 | B9: 90 | C9: 1 | D9: gdfhjre | E9: 1 | F9: 351 | G9: 351 | H9: под заказ | I9: 11583 | J9: 11583 | M9: 13320.45 | N9: 13320.45
A10: 79 | B10: 100 | C10: 1 | D10: 3346t3tgds | E10: 3 | F10: 391 | G10: 1173 | I10: 12903 | J10: 38709 | M10: 14838.45 | N10: 44515.35
A11: ff | B11: gg | C11: hh
D21: Итого: | G21: =SUM(G5:G10) -> 6840 | J21: =SUM(J5:J10) -> 225720 | L21: ИТОГО: | N21: =SUM(N5:N10) -> 259578
L24: Маржа= | M24: =(N21-J21) -> 33858

Sheet Клиентский лист ТКП
A2: Спецификация
A4: Артикул | B4: Производитель | C4: Наименование | D4: Кол-во | E4: Цена | F4: Сумма | G4: В т.ч. НДС
A5: =('Рабочий лист ТКП'!A5) -> 24 | B5: =('Рабочий лист ТКП'!B5) -> 50 | C5: =('Рабочий лист ТКП'!D5) -> sdfgsdf | D5: =('Рабочий лист ТКП'!E5) -> 1 | E5: =('Рабочий лист ТКП'!M5) -> 20606.85 | F5: =('Рабочий лист ТКП'!N5) -> 20606.85 | G5: =F5*0.152542372881356 -> 3143.42
A6: =('Рабочий лист ТКП'!A6) -> 35 | B6: =('Рабочий лист ТКП'!B6) -> 60 | C6: =('Рабочий лист ТКП'!D6) -> sdfgsdsdf | D6: =('Рабочий лист ТКП'!E6) -> 9 | E6: =('Рабочий лист ТКП'!M6) -> 4440.15 | F6: =('Рабочий лист ТКП'!N6) -> 39961.35 | G6: =F6*0.152542372881356 -> 6095.8
A7: =('Рабочий лист ТКП'!A7) -> 46 | B7: =('Рабочий лист ТКП'!B7) -> 70 | C7: =('Рабочий лист ТКП'!D7) -> cvbncvb | D7: =('Рабочий лист ТКП'!E7) -> 3 | E7: =('Рабочий лист ТКП'!M7) -> 23339.25 | F7: =('Рабочий лист ТКП'!N7) -> 70017.75 | G7: 10680.67
A8: =('Рабочий лист ТКП'!A8) -> 57 | B8: =('Рабочий лист ТКП'!B8) -> 80 | C8: =('Рабочий лист ТКП'!D8) -> ljalfddfd | D8: =('Рабочий лист ТКП'!E8) -> 5 | E8: =('Рабочий лист ТКП'!M8) -> 14231.25 | F8: =('Рабочий лист ТКП'!N8) -> 71156.25 | G8: 10854.34
A9: =('Рабочий лист ТКП'!A9) -> 68 | B9: =('Рабочий лист ТКП'!B9) -> 90 | C9: =('Рабочий лист ТКП'!D9) -> gdfhjre | D9: =('Рабочий лист ТКП'!E9) -> 1 | E9: =('Рабочий лист ТКП'!M9) -> 13320.45 | F9: =('Рабочий лист ТКП'!N9) -> 13320.45 | G9: 2031.93
A10: =('Рабочий лист ТКП'!A10) -> 79 | B10: =('Рабочий лист ТКП'!B10) -> 100 | C10: =('Рабочий лист ТКП'!D10) -> 3346t3tgds | D10: =('Рабочий лист ТКП'!E10) -> 3 | E10: =('Рабочий лист ТКП'!M10) -> 14838.45 | F10: =('Рабочий лист ТКП'!N10) -> 44515.35 | G10: 6790.48
A11: =('Рабочий лист ТКП'!A11) -> ff | B11: =('Рабочий лист ТКП'!B11) -> gg | C11: =('Рабочий лист ТКП'!D11) -> 0 | D11: =('Рабочий лист ТКП'!E11) -> 0 | E11: =('Рабочий лист ТКП'!M11) -> 0 | F11: =('Рабочий лист ТКП'!N11) -> 0 | G11: =F11*0.152542372881356 -> 0
A12: =('Рабочий лист ТКП'!A12) -> 0 | B12: =('Рабочий лист ТКП'!B12) -> 0 | C12: =('Рабочий лист ТКП'!D12) -> 0 | D12: =('Рабочий лист ТКП'!E12) -> 0 | E12: =('Рабочий лист ТКП'!M12) -> 0 | F12: =('Рабочий лист ТКП'!N12) -> 0 | G12: 0
A13: =('Рабочий лист ТКП'!A13) -> 0 | B13: =('Рабочий лист ТКП'!B13) -> 0 | C13: =('Рабочий лист ТКП'!D13) -> 0 | D13: =('Рабочий лист ТКП'!E13) -> 0 | E13: =('Рабочий лист ТКП'!M13) -> 0 | F13: =('Рабочий лист ТКП'!N13) -> 0 | G13: 0
A14: =('Рабочий лист ТКП'!A14) -> 0 | B14: =('Рабочий лист ТКП'!B14) -> 0 | C14: =('Рабочий лист ТКП'!D14) -> 0 | D14: =('Рабочий лист ТКП'!E14) -> 0 | E14: =('Рабочий лист ТКП'!M14) -> 0 | F14: =('Рабочий лист ТКП'!N14) -> 0 | G14: 0
A15: =('Рабочий лист ТКП'!A15) -> 0 | B15: =('Рабочий лист ТКП'!B15) -> 0 | C15: =('Рабочий лист ТКП'!D15) -> 0 | D15: =('Рабочий лист ТКП'!E15) -> 0 | E15: =('Рабочий лист ТКП'!M15) -> 0 | F15: =('Рабочий лист ТКП'!N15) -> 0 | G15: 0
A16: =('Рабочий лист ТКП'!A16) -> 0 | B16: =('Рабочий лист ТКП'!B16) -> 0 | C16: =('Рабочий лист ТКП'!D16) -> 0 | D16: =('Рабочий лист ТКП'!E16) -> 0 | E16: =('Рабочий лист ТКП'!M16) -> 0 | F16: =('Рабочий лист ТКП'!N16) -> 0 | G16: 0
A17: =('Рабочий лист ТКП'!A17) -> 0 | B17: =('Рабочий лист ТКП'!B17) -> 0 | C17: =('Рабочий лист ТКП'!D17) -> 0 | D17: =('Рабочий лист ТКП'!E17) -> 0 | E17: =('Рабочий лист ТКП'!M17) -> 0 | F17: =('Рабочий лист ТКП'!N17) -> 0 | G17: 0
A18: =('Рабочий лист ТКП'!A18) -> 0 | B18: =('Рабочий лист ТКП'!B18) -> 0 | C18: =('Рабочий лист ТКП'!D18) -> 0 | D18: =('Рабочий лист ТКП'!E18) -> 0 | E18: =('Рабочий лист ТКП'!M18) -> 0 | F18: =('Рабочий лист ТКП'!N18) -> 0 | G18: 0
A19: =('Рабочий лист ТКП'!A19) -> 0 | B19: =('Рабочий лист ТКП'!B19) -> 0 | C19: =('Рабочий лист ТКП'!D19) -> 0 | D19: =('Рабочий лист ТКП'!E19) -> 0 | E19: =('Рабочий лист ТКП'!M19) -> 0 | F19: =('Рабочий лист ТКП'!N19) -> 0 | G19: 0
A20: =('Рабочий лист ТКП'!A20) -> 0 | B20: =('Рабочий лист ТКП'!B20) -> 0 | C20: =('Рабочий лист ТКП'!D20) -> 0 | D20: =('Рабочий лист ТКП'!E20) -> 0 | E20: =('Рабочий лист ТКП'!M20) -> 0 | F20: =('Рабочий лист ТКП'!N20) -> 0 | G20: 0
C21: Итого: | D21: =SUM(D4:D10) -> 22 | F21: ='Рабочий лист ТКП'!$N$21 -> 259578 | G21: =SUM(G4:G10) -> 39596.64
